bitfinex-derivatives/quotes_BTCF0:USTF0_20250411
["timestamp","ask_amount","ask_price","bid_price","bid_amount"]
[1744404757302,0.5423822,83937.0,83936.0,0.0011679]
[1744404760109,0.5317822,83937.0,83936.0,0.0011679]
[1744404762712,0.1191978,83926.0,83925.0,0.00476613]
[1744404762903,0.5556778,83926.0,83925.0,0.00476613]
[1744404763811,0.5879778,83926.0,83925.0,0.00480613]
[1744404764619,0.5879778,83926.0,83925.0,0.00476613]
[1744404764814,0.5879778,83926.0,83925.0,0.00480613]
[1744404765210,0.5879778,83926.0,83925.0,0.00476613]
[1744404765410,0.5879778,83926.0,83925.0,0.00480613]
[1744404768519,0.6210778,83926.0,83925.0,0.00480613]
[1744404770527,0.6210778,83926.0,83925.0,0.03580613]
[1744404775618,0.5557178,83926.0,83925.0,0.15500533]
[1744404775824,0.3608,83926.0,83925.0,0.15500533]
[1744404776122,0.5557178,83926.0,83925.0,0.18810533]
[1744404779024,0.5557178,83926.0,83925.0,0.06890613]
[1744404779225,0.6524178,83926.0,83925.0,0.06886613]
[1744404779523,0.6524178,83926.0,83925.0,0.06890613]
[1744404780325,0.6524178,83926.0,83925.0,0.18810533]
[1744404786121,0.6524178,83926.0,83925.0,0.15500533]
[1744404788620,0.6524178,83926.0,83925.0,0.18730533]
[1744404790228,0.6524178,83926.0,83925.0,0.15500533]
[1744404790927,0.6524178,83926.0,83925.0,0.18770533]
[1744404792520,0.6523778,83926.0,83925.0,0.18770533]
[1744404792825,0.5556778,83926.0,83925.0,0.18770533]
[1744404793032,0.43648,83926.0,83925.0,0.18770533]
[1744404793222,0.43648,83926.0,83925.0,0.21890533]
[1744404793726,0.5556778,83926.0,83925.0,0.21890533]
[1744404796431,0.4799978,83926.0,83925.0,0.21890533]
[1744404804933,0.5116978,83926.0,83925.0,0.21890533]
[1744404807533,0.5116978,83926.0,83925.0,0.18770533]
[1744404807942,0.5436978,83926.0,83925.0,0.18770533]
[1744404808941,0.5436978,83926.0,83925.0,0.40143264]
[1744404812447,0.5436978,83926.0,83925.0,0.18770533]
[1744404815945,0.1828978,83926.0,83925.0,0.18770533]
[1744404816136,0.5436978,83926.0,83925.0,0.18770533]
[1744404816341,0.5436978,83926.0,83925.0,0.15500533]
[1744404819648,0.5436978,83926.0,83925.0,0.12396533]
[1744404819859,0.5436978,83926.0,83925.0,0.12400533]
[1744404820152,0.5436978,83926.0,83925.0,0.12396533]
[1744404820338,0.5436978,83926.0,83925.0,0.12400533]
[1744404821947,0.7936978,83926.0,83925.0,0.00480613]
[1744404822154,0.7936978,83926.0,83925.0,0.00476613]
[1744404822352,0.7936978,83926.0,83925.0,0.00480613]
[1744404823049,0.5436978,83926.0,83925.0,0.00480613]
[1744404823248,0.7936978,83926.0,83925.0,3e-08]
[1744404823747,0.1192021,83923.0,83922.0,0.28485742]
[1744404823949,0.4800021,83923.0,83922.0,0.28485742]
[1744404824150,0.5748021,83923.0,83922.0,0.28485742]
[1744404825066,0.1192092,83918.0,83917.0,0.00017871]
[1744404825251,0.1948492,83918.0,83917.0,0.00017871]
[1744404825452,0.2570492,83918.0,83917.0,0.00017871]
[1744404828961,0.2570492,83918.0,83917.0,0.11938931]
[1744404829157,0.2570492,83918.0,83917.0,0.00017871]
[1744404829851,0.2570492,83918.0,83917.0,1e-08]
[1744404830469,0.2570492,83918.0,83917.0,4.001e-05]
[1744404831857,0.2570492,83918.0,83917.0,1e-08]
[1744404836960,0.3997916,83918.0,83917.0,1e-08]
[1744404838061,0.3998316,83918.0,83917.0,1e-08]
[1744404846371,1.1214316,83918.0,83917.0,1e-08]
[1744404847168,0.9835516,83918.0,83917.0,1e-08]
[1744404847360,0.9835516,83918.0,83917.0,0.11921061]
[1744404847767,0.9835516,83918.0,83917.0,1e-08]
[1744404847962,0.9835516,83918.0,83917.0,0.06170001]
[1744404848360,0.9835516,83918.0,83917.0,0.03120001]
[1744404848562,0.1192205,83910.0,83909.0,0.00011934]
[1744404848756,0.4800205,83910.0,83909.0,0.00011934]
[1744404848970,0.5750205,83910.0,83909.0,0.00011934]
[1744404849667,0.6506605,83910.0,83909.0,0.00011934]
[1744404852863,0.6205605,83910.0,83909.0,0.00011934]
[1744404853261,0.1192205,83910.0,83909.0,0.00011934]
[1744404853475,0.21849379,83912.0,83911.0,0.1192191]
[1744404853678,0.33771149,83912.0,83911.0,0.1192191]
[1744404853874,0.33771149,83912.0,83911.0,0.2132191]
[1744404855273,0.33771149,83912.0,83911.0,0.2132591]
[1744404855671,0.26207149,83912.0,83911.0,0.2132591]
[1744404858185,0.1192177,83912.0,83911.0,0.2132591]
[1744404858385,0.0596075,83914.0,83913.0,0.1192163]
[1744404858890,0.0596075,83914.0,83913.0,0.1826163]
[1744404863197,0.0897075,83914.0,83913.0,0.1826163]
[1744404863388,0.1217075,83914.0,83913.0,0.1826563]
[1744404863890,0.4825075,83914.0,83913.0,0.1826563]
[1744404867598,0.4825075,83914.0,83913.0,0.1826163]
[1744404867800,0.4825075,83914.0,83913.0,0.1826563]
[1744404869098,0.4825075,83914.0,83913.0,0.03274]
[1744404869398,0.4825075,83914.0,83913.0,0.1840563]
[1744404869898,0.4825075,83914.0,83913.0,0.1519563]
[1744404870100,0.4825075,83914.0,83913.0,4e-05]
[1744404871097,0.1192205,83910.0,83909.0,0.03171934]
[1744404871498,0.1852205,83910.0,83909.0,0.03171934]
[1744404872804,0.1852205,83910.0,83909.0,0.00011934]
[1744404874098,0.1852205,83910.0,83909.0,0.00015934]
[1744404882795,0.2608605,83910.0,83909.0,0.00015934]
[1744404884809,0.9824605,83910.0,83909.0,0.00015934]
[1744404897823,1.12531429,83910.0,83909.0,0.00015934]
[1744404898418,1.04967429,83910.0,83909.0,0.00015934]
[1744404898624,1.12531429,83910.0,83909.0,0.00015934]
[1744404900124,1.12531429,83910.0,83909.0,0.03215934]
[1744404900324,0.86445379,83910.0,83909.0,0.15138134]
[1744404900627,0.98367429,83910.0,83909.0,0.18258134]
[1744404900825,0.98367429,83910.0,83909.0,0.21498134]
[1744404901425,0.86445379,83910.0,83909.0,0.21498134]
[1744404901628,0.98367429,83910.0,83909.0,0.21498134]
[1744404901827,0.8408205,83910.0,83909.0,0.21498134]
[1744404902922,0.8408205,83910.0,83909.0,0.06455934]
[1744404902923,0.8741205,83910.0,83909.0,0.06455934]
[1744404903124,0.9370205,83910.0,83909.0,0.06451934]
[1744404903330,0.4800205,83910.0,83909.0,0.18378134]
[1744404903626,0.3608,83910.0,83909.0,0.18378134]
[1744404903826,0.17704979,83914.0,83913.0,0.1192163]
[1744404904226,0.17704979,83914.0,83913.0,0.1800163]
[1744404904726,0.1192149,83914.0,83913.0,0.1800163]
[1744404908826,0.3608,83915.0,83914.0,0.1192149]
[1744404909030,0.4800134,83915.0,83914.0,0.1504149]
[1744404909225,0.4800134,83915.0,83914.0,0.1821149]
[1744404909425,0.1192134,83915.0,83914.0,0.1821149]
[1744404913332,0.0304,83923.0,83921.0,0.1192049]
[1744404913532,0.4800035,83922.0,83921.0,0.1192049]
[1744404913734,0.4800035,83922.0,83921.0,0.2147049]
[1744404913930,0.4800035,83922.0,83921.0,0.1517049]
[1744404914134,0.0596082,83913.0,83911.0,0.1822177]
[1744404914337,0.3925,83912.0,83911.0,0.1827177]
[1744404914537,0.5749177,83912.0,83911.0,0.2423272]
[1744404914735,0.5749177,83912.0,83911.0,0.2113272]
[1744404915240,0.3608,83912.0,83911.0,0.2113672]
[1744404915433,0.0317,83921.0,83920.0,0.1192063]
[1744404915630,0.3608,83922.0,83921.0,0.1192049]
[1744404915631,0.4800041,83922.0,83921.0,0.1192049]
[1744404916235,0.4800041,83922.0,83921.0,0.1493049]
[1744404917642,0.5131041,83922.0,83921.0,0.1493049]
[1744404919646,0.5131041,83922.0,83921.0,0.1192049]
[1744404919647,0.5436041,83922.0,83921.0,0.1192049]
[1744404919849,0.0596025,83921.0,83905.0,9.841e-05]
[1744404920146,0.1192177,83912.0,83911.0,0.1788243]
[1744404920739,0.3608,83914.0,83913.0,0.1192163]
[1744404920936,0.0596046,83918.0,83917.0,0.1192106]
[1744404921244,0.0596046,83918.0,83917.0,0.1504106]
[1744404921442,0.0896046,83918.0,83917.0,0.1829106]
[1744404922543,0.1218046,83918.0,83917.0,0.1829106]
[1744404925246,0.4826046,83918.0,83917.0,0.1829106]
[1744404926846,0.1218046,83918.0,83917.0,0.1829106]
[1744404927247,0.4826046,83918.0,83917.0,0.1829106]
[1744404927647,0.1218046,83918.0,83917.0,0.1829106]
[1744404927946,0.4826046,83918.0,83917.0,0.1829106]
[1744404928148,0.4826046,83918.0,83917.0,0.1517106]
[1744404928347,0.4826046,83918.0,83917.0,0.1832106]
[1744404929152,0.4826046,83918.0,83917.0,0.1507106]
[1744404929853,0.1192134,83915.0,83914.0,0.0596069]
[1744404930451,0.2136134,83915.0,83914.0,0.0596469]
[1744404934340,0.2136134,83915.0,83914.0,4e-05]
[1744404934854,0.2732201,83915.0,83914.0,0.1192549]
[1744404935053,0.0944,83915.0,83914.0,0.1192549]
[1744404935247,0.0944,83915.0,83914.0,0.1507549]
[1744404936650,0.0625,83915.0,83914.0,0.1507549]
[1744404936859,0.0625,83915.0,83914.0,0.1807549]
[1744404937449,0.0306,83915.0,83914.0,0.1807549]
[1744404939749,0.61728249,83918.0,83917.0,0.1192106]
[1744404940254,0.61728249,83918.0,83917.0,0.5106106]
[1744404940255,0.10707269,83918.0,83917.0,0.5106106]
[1744404940557,9e-08,83918.0,83917.0,0.7606106]
[1744404941059,9e-08,83918.0,83917.0,0.7923106]
[1744404941652,9e-08,83918.0,83917.0,0.5423106]
[1744404942055,0.0634,83922.0,83921.0,0.1192049]
[1744404942557,0.0634,83922.0,83921.0,0.1841049]
[1744404948060,0.0634,83922.0,83921.0,0.1509049]
[1744404948563,0.5434035,83922.0,83921.0,0.1192049]
[1744404948757,0.5434035,83922.0,83921.0,0.1500049]
[1744404948957,0.5434035,83922.0,83921.0,0.1500449]
[1744404949463,0.0634,83922.0,83921.0,0.1500449]
[1744404959271,0.0634,83922.0,83921.0,0.36338885]
[1744404962866,0.0634,83922.0,83921.0,0.33258885]
[1744404963069,0.1826035,83922.0,83921.0,0.33258885]
[1744404965676,0.1826035,83922.0,83921.0,0.33254885]
[1744404965868,0.1826035,83922.0,83921.0,0.33258885]
[1744404966069,0.1826035,83922.0,83921.0,0.33254885]
[1744404966271,0.1826035,83922.0,83921.0,0.33258885]
[1744404968371,0.5434035,83922.0,83921.0,0.33258885]
[1744404969076,0.5434035,83922.0,83921.0,0.1192449]
[1744404970176,0.1826035,83922.0,83921.0,0.1192449]
[1744404970381,0.5434035,83922.0,83921.0,0.1192449]
[1744404971668,0.4242,83922.0,83921.0,0.1192449]
[1744404972073,0.4242,83922.0,83921.0,0.1501449]
[1744404972474,0.4242,83922.0,83921.0,0.36348885]
[1744404974967,0.14294757,83932.0,83926.0,0.0595988]
[1744404975169,0.08924817,83932.0,83931.0,0.1191907]
[1744404975674,0.08924817,83932.0,83931.0,0.1822907]
[1744404976578,0.00017871,83934.0,83933.0,0.1191879]
[1744404976774,0.03137871,83934.0,83932.0,0.0595946]
[1744404976974,0.1787981,83927.0,83926.0,0.1191978]
[1744404977173,0.5395981,83927.0,83926.0,0.1191978]
[1744404977373,0.5719981,83927.0,83926.0,0.1787965]
[1744404979083,0.3932,83927.0,83926.0,0.1787965]
[1744404979481,0.0324,83927.0,83926.0,0.1787965]
[1744404979785,0.1515964,83927.0,83926.0,0.1787965]
[1744404979985,0.1515964,83927.0,83926.0,0.2089965]
[1744404980480,0.1515964,83927.0,83926.0,0.1787965]
[1744404980886,0.1515964,83927.0,83926.0,0.39224311]
[1744404981487,0.0324,83927.0,83926.0,0.39224311]
[1744404981787,0.0324,83927.0,83926.0,0.42244311]
[1744404982486,0.3608,83931.0,83930.0,0.1191921]
[1744404982886,0.3608,83931.0,83930.0,0.1822921]
[1744404983485,0.3608,83931.0,83930.0,0.1501921]
[1744404985292,0.3608,83931.0,83930.0,0.1191921]
[1744404985488,0.4799907,83931.0,83930.0,0.1191921]
[1744404985791,0.5118907,83931.0,83930.0,0.1191921]
[1744404986384,0.1191992,83925.0,83924.0,0.28489742]
[1744404986587,0.1191992,83925.0,83924.0,0.28485742]
[1744404986786,0.1510992,83925.0,83924.0,0.40409812]
[1744404988192,0.1832992,83925.0,83924.0,0.33266456]
[1744404990195,0.1832992,83925.0,83924.0,0.21342386]
[1744404990389,0.1832992,83925.0,83924.0,0.33266456]
[1744404992996,0.1832992,83925.0,83924.0,0.1192407]
[1744404994101,0.1832992,83925.0,83924.0,4e-05]
[1744404996103,0.2165992,83925.0,83924.0,4e-05]
[1744404998708,0.1192106,83917.0,83916.0,0.1192116]
[1744404998898,0.4800106,83917.0,83916.0,0.1192656]
[1744404999094,0.5439106,83917.0,83916.0,5.4e-05]
[1744404999515,0.5439106,83917.0,83916.0,0.119266]
[1744405000104,0.5439106,83917.0,83916.0,0.152166]
[1744405000505,0.4247,83917.0,83916.0,0.152166]
[1744405000705,0.5439106,83917.0,83916.0,0.185266]
[1744405001509,0.3608,83917.0,83916.0,0.185266]
[1744405001710,0.4800106,83917.0,83916.0,0.185266]
[1744405002311,0.3926,83917.0,83916.0,0.185266]
[1744405003315,0.5118106,83917.0,83916.0,5.4e-05]
[1744405003500,0.5442106,83917.0,83916.0,5.4e-05]
[1744405003703,0.1192177,83912.0,83909.0,0.00011934]
[1744405003909,0.5555777,83912.0,83911.0,0.17563216]
[1744405004114,0.67217031,83912.0,83911.0,0.17563216]
[1744405004307,0.67217031,83912.0,83911.0,0.17567216]
[1744405004509,0.6512777,83912.0,83911.0,0.17567216]
[1744405004910,0.5757177,83912.0,83911.0,0.17567216]
[1744405005103,0.6512777,83912.0,83911.0,0.17567216]
[1744405005302,0.6512777,83912.0,83911.0,4e-05]
[1744405005811,0.66314894,83912.0,83911.0,4e-05]
[1744405006012,0.91314894,83912.0,83911.0,4e-05]
[1744405006207,0.91314894,83912.0,83907.0,0.28485742]
[1744405006208,0.1192234,83908.0,83907.0,6e-08]
[1744405006414,0.1192319,83902.0,83901.0,5.4e-05]
[1744405006613,0.1192333,83901.0,83900.0,0.1]
[1744405006914,0.1192348,83900.0,83899.0,1e-08]
[1744405007109,0.119239,83897.0,83896.0,0.26451097]
[1744405007305,0.119239,83897.0,83896.0,0.16128587]
[1744405007503,0.150839,83897.0,83896.0,0.12202367]
[1744405007711,0.150839,83897.0,83896.0,7e-08]
[1744405009113,0.400839,83897.0,83896.0,7e-08]
[1744405009507,0.432039,83897.0,83896.0,7e-08]
[1744405011213,0.182039,83897.0,83896.0,7e-08]
[1744405011404,0.600639,83897.0,83896.0,7e-08]
[1744405011811,0.850639,83897.0,83896.0,7e-08]
[1744405012116,0.1192717,83874.0,83873.0,0.00476909]
[1744405012327,0.5556317,83874.0,83873.0,0.00476909]
[1744405012911,0.6197317,83874.0,83873.0,0.00476909]
[1744405014619,0.6197317,83874.0,83873.0,0.03546909]
[1744405015717,0.6197317,83874.0,83873.0,0.00476909]
[1744405015919,0.6197317,83874.0,83873.0,0.00480909]
[1744405016115,0.6197317,83874.0,83873.0,0.00476909]
[1744405016919,0.6197317,83874.0,83873.0,0.00480909]
[1744405017816,0.6197317,83874.0,83873.0,4.009e-05]
[1744405018016,0.6197317,83874.0,83873.0,9e-08]
[1744405018822,0.1192902,83861.0,83860.0,0.0321]
[1744405019020,0.5556902,83861.0,83860.0,0.032154]
[1744405019821,0.6166902,83861.0,83860.0,0.032154]
[1744405020224,0.6166902,83861.0,83860.0,0.0321]
[1744405020412,0.6166902,83861.0,83860.0,0.03214]
[1744405020615,0.6166902,83861.0,83860.0,0.0321]
[1744405021017,0.6166902,83861.0,83860.0,0.03214]
[1744405024425,0.5859902,83861.0,83860.0,0.03214]
[1744405024727,0.5556902,83861.0,83860.0,0.1514316]
[1744405025122,0.5556902,83861.0,83860.0,0.2146316]
[1744405025322,0.5889902,83861.0,83860.0,0.2146316]
[1744405031635,0.5889902,83861.0,83860.0,0.09534]
[1744405031930,0.5889902,83861.0,83860.0,0.2146316]
[1744405033432,0.5556902,83861.0,83860.0,0.2146316]
[1744405036232,0.5859902,83861.0,83860.0,0.2146316]
[1744405037629,0.6186902,83861.0,83860.0,0.1829316]
[1744405038140,0.6186902,83861.0,83860.0,0.06364]
[1744405039335,0.9794902,83861.0,83860.0,0.06364]
[1744405040135,0.9794902,83861.0,83855.0,0.0596493]
[1744405040136,0.8602,83861.0,83850.0,0.1789514]
[1744405040435,0.0596501,83854.0,83853.0,0.1193556]
[1744405040637,0.4204501,83854.0,83853.0,0.1522016]
[1744405040936,0.4204501,83854.0,83853.0,0.1522416]
[1744405041939,0.5397517,83854.0,83853.0,0.1522416]
[1744405043225,0.6042517,83854.0,83853.0,0.1834416]
[1744405045037,0.6042517,83854.0,83853.0,0.1522416]
[1744405045237,0.6042517,83854.0,83853.0,0.03294]
[1744405045434,0.6042517,83854.0,83853.0,4e-05]
[1744405045651,0.1193073,83849.0,83848.0,0.0633]
[1744405045838,0.5557073,83849.0,83848.0,0.0633]
[1744405046140,0.6200073,83849.0,83848.0,0.0633]
[1744405046734,0.468,83849.0,83848.0,0.1826087]
[1744405046933,0.468,83849.0,83848.0,0.2156087]
[1744405047134,0.3608,83849.0,83848.0,0.2156087]
[1744405047531,0.4801073,83849.0,83848.0,0.2156087]
[1744405048937,0.4801073,83849.0,83848.0,0.0633]
[1744405049156,0.1193087,83848.0,83847.0,0.00477057]
[1744405049334,0.1509087,83848.0,83847.0,0.00477057]
[1744405049641,0.1818087,83848.0,83847.0,0.12408067]
[1744405050944,0.1818087,83848.0,83847.0,0.15518067]
[1744405051245,0.2574087,83848.0,83847.0,0.15518067]
[1744405052455,0.2574087,83848.0,83847.0,0.18658067]
[1744405055237,0.1072,83848.0,83847.0,0.18658067]
[1744405055640,0.2265087,83848.0,83847.0,0.18658067]
[1744405056043,0.2590087,83848.0,83847.0,0.15518067]
[1744405056444,0.2590087,83848.0,83847.0,0.12408067]
[1744405056645,0.2890087,83848.0,83847.0,0.12408067]
[1744405056846,0.2890087,83848.0,83847.0,0.12412067]
[1744405060757,0.2590087,83848.0,83847.0,0.15422067]
[1744405063769,0.9806087,83848.0,83847.0,0.15422067]
[1744405067970,0.9806087,83848.0,83847.0,0.12412067]
[1744405068160,0.9806087,83848.0,83847.0,0.00481057]
[1744405075981,0.9806087,83848.0,83847.0,0.12412067]
[1744405076878,0.9050087,83848.0,83847.0,0.12412067]
[1744405077079,0.9806087,83848.0,83847.0,0.15702067]
[1744405080084,0.9050087,83848.0,83847.0,0.15702067]
[1744405080278,0.7857,83848.0,83847.0,0.15702067]
[1744405080470,0.7216,83848.0,83847.0,0.18812067]
[1744405080676,0.8409087,83848.0,83847.0,0.18812067]
[1744405080982,0.8729087,83848.0,83847.0,0.18812067]
[1744405081380,0.9029087,83848.0,83847.0,0.18812067]
[1744405081782,0.9029087,83848.0,83847.0,0.06881057]
[1744405082083,0.9029087,83848.0,83847.0,0.15702067]
[1744405083778,0.9029087,83848.0,83847.0,0.03771057]
[1744405083978,0.9029087,83848.0,83847.0,0.15702067]
[1744405086184,0.8729087,83848.0,83847.0,0.18942067]
[1744405086383,0.7536,83848.0,83847.0,0.18942067]
[1744405086588,0.3608,83848.0,83847.0,0.18942067]
[1744405089590,0.4801087,83848.0,83847.0,0.07007057]
[1744405089890,0.5127087,83848.0,83847.0,0.03771057]
[1744405090092,0.5440087,83848.0,83847.0,0.03771057]
[1744405090291,0.5440087,83848.0,83847.0,0.15702067]
[1744405096291,0.4247,83848.0,83847.0,0.15702067]
[1744405096492,0.4247,83848.0,83847.0,0.18752067]
[1744405097595,0.5440087,83848.0,83847.0,0.18752067]
[1744405097791,0.5440087,83848.0,83847.0,0.15702067]
[1744405097992,0.5440087,83848.0,83847.0,0.00481057]
[1744405098290,0.5440087,83848.0,83847.0,0.00477057]
[1744405098291,0.5760087,83848.0,83847.0,0.00477057]
[1744405098490,0.5760087,83848.0,83847.0,0.00481057]
[1744405099395,0.5440087,83848.0,83847.0,0.12412067]
[1744405099602,0.6196087,83848.0,83847.0,0.12412067]
[1744405099799,0.6196087,83848.0,83847.0,0.15512067]
[1744405102297,0.3608,83848.0,83847.0,0.18742067]
[1744405105807,0.0756,83855.0,83854.0,0.1193002]
[1744405106013,0.14305447,83857.0,83856.0,0.1192973]
[1744405106501,0.14305447,83857.0,83856.0,0.1812973]
[1744405110314,0.0616,83859.0,83858.0,0.1192945]
[1744405110507,0.0616,83859.0,83858.0,0.1516945]
[1744405110810,0.1808931,83859.0,83858.0,0.1516945]
[1744405111109,0.0616,83859.0,83858.0,0.1517345]
[1744405111413,0.0616,83859.0,83858.0,0.1835345]
[1744405112213,0.0304,83859.0,83858.0,0.1835345]
[1744405112608,0.0304,83859.0,83858.0,0.1517345]
[1744405113312,0.0304,83859.0,83858.0,0.1832345]
[1744405118117,0.3608,83861.0,83860.0,0.1192916]
[1744405118416,0.3608,83861.0,83860.0,0.1353246]
[1744405118615,0.3608,83861.0,83860.0,0.1992246]
[1744405126310,0.3608,83861.0,83860.0,0.1353246]
[1744405126513,0.4800902,83861.0,83860.0,0.1353246]
[1744405126911,0.4243,83861.0,83860.0,0.1353246]
[1744405127322,0.4243,83861.0,83860.0,0.1659246]
[1744405127620,0.00017882,83864.0,83863.0,0.1192874]
[1744405127825,0.00017882,83864.0,83863.0,0.1353204]
[1744405128122,0.00017882,83864.0,83863.0,0.2285204]
[1744405128511,0.062,83874.0,83873.0,0.1192731]
[1744405128816,0.0302,83874.0,83873.0,0.1353061]
[1744405129015,0.0302,83874.0,83873.0,0.2282061]
[1744405129413,0.3608,83877.0,83876.0,0.1192689]
[1744405129620,0.3608,83877.0,83876.0,0.1353019]
[1744405129817,0.3608,83877.0,83876.0,0.1671019]
[1744405130830,0.4800674,83877.0,83876.0,0.016033]
[1744405131025,0.3608,83877.0,83876.0,0.1353019]
[1744405131324,0.3919,83877.0,83876.0,0.1353019]
[1744405131521,0.3919,83877.0,83876.0,0.1995019]
[1744405131727,0.0318,83880.0,83879.0,0.1192646]
[1744405132026,0.3608,83882.0,83881.0,0.1192618]
[1744405132226,0.10738297,83885.0,83884.0,0.1192575]
[1744405132418,0.10738297,83885.0,83884.0,0.1352905]
[1744405132619,0.10738297,83885.0,83884.0,0.1680905]
[1744405133024,0.10738297,83885.0,83884.0,0.1999905]
[1744405133526,0.00017882,83885.0,83884.0,0.1999905]
[1744405134726,0.00017882,83885.0,83884.0,0.2000305]
[1744405135518,0.00017882,83885.0,83884.0,0.20037483]
[1744405135828,0.00017882,83885.0,83884.0,0.20037342]
[1744405139223,0.00017882,83885.0,83884.0,0.20033342]
[1744405139920,0.03167882,83885.0,83884.0,0.20037342]
[1744405142427,0.03167882,83885.0,83884.0,0.20056448]
[1744405145626,0.03167882,83885.0,83884.0,0.20065025]
[1744405147833,0.03167882,83885.0,83884.0,0.20101348]
[1744405152936,0.03167882,83885.0,83884.0,0.21676592]
[1744405153624,0.03167882,83885.0,83884.0,0.21768543]
[1744405153831,0.3608,83907.0,83889.0,0.0596246]
[1744405153832,0.43688,83907.0,83889.0,0.0596246]
[1744405154034,0.0637,83906.0,83905.0,0.1192276]
[1744405154228,0.0637,83906.0,83905.0,0.13716309]
[1744405154438,0.0306,83906.0,83905.0,0.15291553]
[1744405154634,0.0306,83906.0,83905.0,0.24831553]
[1744405155030,0.0306,83906.0,83905.0,0.24799796]
[1744405156340,0.0306,83906.0,83905.0,0.26014033]
[1744405157342,0.0306,83906.0,83905.0,0.21689796]
[1744405160542,0.0626,83906.0,83905.0,0.21689796]
[1744405161953,0.0626,83906.0,83905.0,0.20114552]
[1744405162248,0.0626,83906.0,83905.0,0.2009511]
[1744405165239,0.0626,83906.0,83905.0,0.21673151]
[1744405167243,0.0626,83906.0,83905.0,0.24953151]
[1744405167841,0.032,83906.0,83905.0,0.24953151]
[1744405169454,0.032,83906.0,83905.0,0.18473151]
[1744405171547,0.0633,83906.0,83905.0,0.18473151]
[1744405171846,0.0633,83906.0,83905.0,0.15243151]
[1744405172750,0.0633,83906.0,83905.0,0.18283151]
[1744405175739,0.0633,83906.0,83905.0,0.21603151]
[1744405177048,0.0633,83906.0,83905.0,0.18283151]
[1744405180453,0.0633,83906.0,83905.0,0.15243151]
[1744405180655,0.1825262,83906.0,83905.0,0.15247151]
[1744405181354,0.1825262,83906.0,83905.0,0.15243151]
[1744405181854,0.1825262,83906.0,83905.0,0.15247151]
[1744405182642,0.1825262,83906.0,83905.0,0.15243151]
[1744405182847,0.1825262,83906.0,83905.0,0.03324391]
[1744405183257,0.1825262,83906.0,83905.0,0.03320391]
[1744405183453,0.1825262,83906.0,83905.0,0.03324391]
[1744405184758,0.1825262,83906.0,83905.0,0.03400159]
[1744405185057,0.1825262,83906.0,83905.0,0.15322919]
[1744405186355,0.1825262,83906.0,83905.0,0.03400159]
[1744405186551,0.1825262,83906.0,83905.0,0.15322919]
[1744405188455,0.28973035,83906.0,83905.0,0.03400159]
[1744405188655,0.28973035,83906.0,83905.0,0.03396159]
[1744405188858,0.28973035,83906.0,83905.0,0.03400159]
[1744405189863,0.28973035,83906.0,83905.0,0.15322919]
[1744405190165,0.28973035,83906.0,83905.0,0.03400159]
[1744405190662,0.28973035,83906.0,83905.0,0.03396159]
[1744405190863,0.28973035,83906.0,83905.0,0.15322919]
[1744405192264,0.1825262,83906.0,83905.0,0.03400159]
[1744405192658,0.1192362,83899.0,83898.0,0.21386857]
[1744405192860,0.8986362,83899.0,83898.0,0.21386857]
[1744405193060,1.2102362,83899.0,83898.0,0.01262612]
[1744405193266,0.1192447,83893.0,83892.0,0.25824697]
[1744405193467,0.5568847,83893.0,83892.0,0.17675027]
[1744405193666,0.8684847,83893.0,83892.0,0.17675027]
[1744405193862,0.8684847,83893.0,83892.0,0.14499027]
[1744405194164,0.8684847,83893.0,83892.0,0.14495027]
[1744405194359,0.1192561,83885.0,83884.0,0.35716875]
[1744405194559,0.4800561,83885.0,83884.0,0.35716875]
[1744405194752,0.4800561,83885.0,83884.0,0.35720875]
[1744405194960,0.5433561,83885.0,83884.0,0.35720875]
[1744405195561,0.5433561,83885.0,83884.0,0.00021882]
[1744405195954,0.6201961,83885.0,83884.0,0.00021882]
[1744405198362,0.63212427,83885.0,83884.0,0.00021882]
[1744405198562,0.63212427,83885.0,83884.0,0.00017882]
[1744405199455,0.63212427,83885.0,83884.0,0.00021882]
[1744405200363,1.05072427,83885.0,83884.0,0.00021882]
[1744405200559,1.05072427,83885.0,83884.0,0.00017882]
[1744405201364,1.05072427,83885.0,83884.0,0.00021882]
[1744405202865,1.30072427,83885.0,83884.0,0.00021882]
[1744405203262,1.30072427,83885.0,83884.0,2e-08]
[1744405203768,1.05072427,83885.0,83884.0,2e-08]
[1744405203965,1.30072427,83885.0,83884.0,2e-08]
[1744405205664,1.05072427,83885.0,83884.0,2e-08]
[1744405208177,0.1192717,83874.0,83873.0,0.00476909]
[1744405208472,0.4800717,83874.0,83873.0,0.00476909]
[1744405208868,0.84964529,83874.0,83873.0,0.00476909]
[1744405209069,0.9036717,83874.0,83873.0,0.00476909]
[1744405209978,0.9036717,83874.0,83873.0,0.00480909]
[1744405210174,0.0596407,83868.0,83856.0,5.4e-05]
[1744405210372,0.1192945,83858.0,83857.0,0.0312]
[1744405210573,0.1192945,83858.0,83857.0,0.0621]
[1744405210771,0.1524945,83858.0,83857.0,0.0621]
[1744405210972,0.1524945,83858.0,83857.0,0.06214]
[1744405211166,0.1192945,83858.0,83857.0,0.06214]
[1744405211975,0.7216,83860.0,83857.0,0.3717879]
[1744405212170,0.8408916,83860.0,83859.0,0.1192931]
[1744405212367,0.7216,83860.0,83859.0,0.1192931]
[1744405212573,0.8408916,83860.0,83859.0,0.4306931]
[1744405213469,0.8408916,83860.0,83859.0,0.4624931]
[1744405214071,0.3608,83860.0,83859.0,0.4624931]
[1744405214274,0.2385489,83874.0,83873.0,0.1192731]
[1744405214581,0.2385499,83874.0,83873.0,0.1192731]
[1744405215279,0.1192731,83873.0,83872.0,0.0634]
[1744405216581,0.1522731,83873.0,83872.0,0.0634]
[1744405217373,0.1522731,83873.0,83872.0,0.06344]
[1744405219986,0.1192731,83873.0,83872.0,0.06344]
[1744405220182,0.1508731,83873.0,83872.0,0.0634]
[1744405220383,0.1508731,83873.0,83872.0,0.06344]
[1744405223992,0.1192731,83873.0,83872.0,0.06344]
[1744405224484,0.1974731,83873.0,83872.0,0.06344]
[1744405225880,0.1192731,83873.0,83872.0,0.06344]
[1744405226083,0.1974731,83873.0,83872.0,0.06344]
[1744405226884,0.1974731,83873.0,83872.0,0.1827146]
[1744405227785,0.1974731,83873.0,83872.0,0.19902069]
[1744405228198,0.1974731,83873.0,83872.0,0.1990205]
[1744405228490,0.1974731,83873.0,83872.0,0.2147572]
[1744405228978,0.34041069,83873.0,83872.0,0.2147572]
[1744405229287,0.26221069,83873.0,83872.0,0.2147572]
[1744405229499,0.14293759,83873.0,83872.0,0.2147572]
[1744405229688,0.26221069,83873.0,83872.0,0.2147572]
[1744405229887,0.14293759,83873.0,83872.0,0.2147572]
[1744405230295,0.26221069,83873.0,83872.0,0.2147572]
[1744405233088,0.1192731,83873.0,83872.0,0.1990205]
[1744405234993,0.1192731,83873.0,83872.0,0.21485906]
[1744405239087,0.1192731,83873.0,83872.0,0.21481906]
[1744405239298,0.1505731,83873.0,83872.0,0.1990205]